Workbook

Sheet Introduction
B3: Low Carbon Fuel Standard Tier 1 Simplified CI Calculator for Hydrogen
C4: The Tier 1 Calculator for Hydrogen offers a simplified interface for calculating the carbon intensity (CI) of hydrogen produced from either electrolysis of water or steam methane reformation. This CI can be used for hydrogen that is either dispensed as a transportation fuel or used as an input for renewable diesel, renewable naphtha and alternative jet fuel pathway in the Tier 1 Simplified CI Calculator HEFA for Fuels. To begin, navigate to the "Site-Specific Inputs" worksheet and enter all relevant project data. For Tier 1 pathways, a minimum of 3 months of operational data is required. Inputs entered by the applicant are limited to all yellow cells (see Color Key below). Inputs that do not apply to the fuel pathway may be left blank. Cells containing calculated or predefined input values may not be modified without CARB approval via a Tier 2 pathway. Carbon Intensity (CI) results are provided on the "Pathway Summary" worksheet, along with calculated input results and finished fuel quantities. Pathway-specific Operating Conditions that may be added by CARB prior to pathway certification. The "Predefined Inputs" worksheet contains input values, emission factors, and unit conversion tables from the Argonne National Labs GREET 2022 model, with additional modeling inputs from EPA eGRID, CARB EMFAC, Purdue University GTAP, Stanford OPGEE, and the LCFS pathway database. Note: This calculator contains macros that allow the user to hide fields that are not relevant to a given pathway and that apply formula to some Calculated Value cells depending on the inputs selected. If using Microsoft Excel, users will have to select the "Enable Content" button upon opening this calculator and select "Automatic" calculations from the "Calculation Options" in the "Formulas" toolbar or press F9 to ensure that the calculator results are accurate.
D5: Color Key | F5: LCFS Website Resources
D6: User Input | F6: LCFS Program Overview
D7: Calculated Value | F7: Tier 1 Pathway Calculators and Instruction Manuals
D8: CA-GREET4.0 Input | F8: Tier 1 Pathway Application Process
D44: `

Sheet Site-Specific Inputs
B2: Section 1: Applicant Information | E2: Section 4: Monthly Operational Data
B3: 1.1 Application Number | F3: Energy Inputs | I3: Book-and-Claim Accounting | M3: Finished Fuel Quantities
B4: 1.2 Company Name | I4: RNG | K4: Low-CI Electricity | M4: At Fuel Production Facility | N4: To Fueling Station
B5: 1.3 Company ID | E5: 4.1 | F5: 4.2 | G5: 4.3 | H5: 4.4 | I5: 4.5 | J5: 4.6 | K5: 4.7 | L5: 4.8 | M5: 4.9 | N5: 4.1 | O5: 4.11
B6: 1.4 Fuel Production Facility Address | E6: Reporting Month | F6: Natural Gas | G6: Grid Electricity | H6: Direct Supply Low-CI Electricity | I6: Max Matchable Quantity | J6: Quantity Matched | K6: =I6 -> Max Matchable Quantity | L6: =J6 -> Quantity Matched | M6: Hydrogen Produced | N6: Gaseous Hydrogen | O6: Liquified Hydrogen
B7: 1.5 Facility ID | E7: MM/YYYY | F7: MMBtu, HHV | G7: kWh | H7: kWh | I7: MMBtu, HHV | J7: MMBtu, HHV | K7: kWh | L7: kWh | M7: kg | N7: kg | O7: kg
I8: =IFERROR(MIN(F8,M8*'CA-GREET4.0'!C$24*'CA-GREET4.0'!D$35/'CA-GREET4.0'!F$24)*'Pathway Summary'!H$9/'Pathway Summary'!H$8,) -> 0 | K8: =M8*'CA-GREET4.0'!E$6 -> 0 | L8: 125000
B9: Section 2: Pathway Inputs | I9: =IFERROR(MIN(F9,M9*'CA-GREET4.0'!C$24*'CA-GREET4.0'!D$35/'CA-GREET4.0'!F$24)*'Pathway Summary'!H$9/'Pathway Summary'!H$8,) -> 0 | K9: =M9*'CA-GREET4.0'!E$6 -> 0 | L9: 125000
B10: 2.1 Pathway Type | I10: =IFERROR(MIN(F10,M10*'CA-GREET4.0'!C$24*'CA-GREET4.0'!D$35/'CA-GREET4.0'!F$24)*'Pathway Summary'!H$9/'Pathway Summary'!H$8,) -> 0 | K10: =M10*'CA-GREET4.0'!E$6 -> 0 | L10: 125000
B11: 2.2 Hydrogen Production Inputs | I11: =IFERROR(MIN(F11,M11*'CA-GREET4.0'!C$24*'CA-GREET4.0'!D$35/'CA-GREET4.0'!F$24)*'Pathway Summary'!H$9/'Pathway Summary'!H$8,) -> 0 | K11: =M11*'CA-GREET4.0'!E$6 -> 0 | L11: 125000
B12: 2.3 Process Energy | I12: =IFERROR(MIN(F12,M12*'CA-GREET4.0'!C$24*'CA-GREET4.0'!D$35/'CA-GREET4.0'!F$24)*'Pathway Summary'!H$9/'Pathway Summary'!H$8,) -> 0 | K12: =M12*'CA-GREET4.0'!E$6 -> 0 | L12: 125000
I13: =IFERROR(MIN(F13,M13*'CA-GREET4.0'!C$24*'CA-GREET4.0'!D$35/'CA-GREET4.0'!F$24)*'Pathway Summary'!H$9/'Pathway Summary'!H$8,) -> 0 | K13: =M13*'CA-GREET4.0'!E$6 -> 0 | L13: 125000
B14: 2.4 Book-and-Claim (B&C) Inputs | I14: =IFERROR(MIN(F14,M14*'CA-GREET4.0'!C$24*'CA-GREET4.0'!D$35/'CA-GREET4.0'!F$24)*'Pathway Summary'!H$9/'Pathway Summary'!H$8,) -> 0 | K14: =M14*'CA-GREET4.0'!E$6 -> 0 | L14: 125000
B15: 2.5 Fuel Type Produced | I15: =IFERROR(MIN(F15,M15*'CA-GREET4.0'!C$24*'CA-GREET4.0'!D$35/'CA-GREET4.0'!F$24)*'Pathway Summary'!H$9/'Pathway Summary'!H$8,) -> 0 | K15: =M15*'CA-GREET4.0'!E$6 -> 0 | L15: 125000
I16: =IFERROR(MIN(F16,M16*'CA-GREET4.0'!C$24*'CA-GREET4.0'!D$35/'CA-GREET4.0'!F$24)*'Pathway Summary'!H$9/'Pathway Summary'!H$8,) -> 0 | K16: =M16*'CA-GREET4.0'!E$6 -> 0 | L16: 125000
B17: Section 3: Static Operational Data | I17: =IFERROR(MIN(F17,M17*'CA-GREET4.0'!C$24*'CA-GREET4.0'!D$35/'CA-GREET4.0'!F$24)*'Pathway Summary'!H$9/'Pathway Summary'!H$8,) -> 0 | K17: =M17*'CA-GREET4.0'!E$6 -> 0 | L17: 125000
B18: 3.1 Grid Electricity Region | I18: =IFERROR(MIN(F18,M18*'CA-GREET4.0'!C$24*'CA-GREET4.0'!D$35/'CA-GREET4.0'!F$24)*'Pathway Summary'!H$9/'Pathway Summary'!H$8,) -> 0 | K18: =M18*'CA-GREET4.0'!E$6 -> 0 | L18: 125000
B19: 3.2 Grid CI (gCO2e/kWh) | I19: =IFERROR(MIN(F19,M19*'CA-GREET4.0'!C$24*'CA-GREET4.0'!D$35/'CA-GREET4.0'!F$24)*'Pathway Summary'!H$9/'Pathway Summary'!H$8,) -> 0 | K19: =M19*'CA-GREET4.0'!E$6 -> 0 | L19: 125000
B20: 3.3 Low-CI Electricity CI (gCO2e/kWh) | I20: =IFERROR(MIN(F20,M20*'CA-GREET4.0'!C$24*'CA-GREET4.0'!D$35/'CA-GREET4.0'!F$24)*'Pathway Summary'!H$9/'Pathway Summary'!H$8,) -> 0 | K20: =M20*'CA-GREET4.0'!E$6 -> 0 | L20: 125000
B21: 3.4 B&C RNG FPC | C21: N/A | I21: =IFERROR(MIN(F21,M21*'CA-GREET4.0'!C$24*'CA-GREET4.0'!D$35/'CA-GREET4.0'!F$24)*'Pathway Summary'!H$9/'Pathway Summary'!H$8,) -> 0 | K21: =M21*'CA-GREET4.0'!E$6 -> 0 | L21: 125000
B22: 3.5 B&C RNG CI (gCO2e/MJ, LHV) | C22: N/A | I22: =IFERROR(MIN(F22,M22*'CA-GREET4.0'!C$24*'CA-GREET4.0'!D$35/'CA-GREET4.0'!F$24)*'Pathway Summary'!H$9/'Pathway Summary'!H$8,) -> 0 | K22: =M22*'CA-GREET4.0'!E$6 -> 0 | L22: 125000
B23: 3.6 B&C Electricity FPC | C23: N/A | I23: =IFERROR(MIN(F23,M23*'CA-GREET4.0'!C$24*'CA-GREET4.0'!D$35/'CA-GREET4.0'!F$24)*'Pathway Summary'!H$9/'Pathway Summary'!H$8,) -> 0 | K23: =M23*'CA-GREET4.0'!E$6 -> 0 | L23: 125000
B24: 3.7 B&C Electricity CI (gCO2e/kWh) | C24: N/A | I24: =IFERROR(MIN(F24,M24*'CA-GREET4.0'!C$24*'CA-GREET4.0'!D$35/'CA-GREET4.0'!F$24)*'Pathway Summary'!H$9/'Pathway Summary'!H$8,) -> 0 | K24: =M24*'CA-GREET4.0'!E$6 -> 0 | L24: 125000
B25: 3.8 H2 Transport Distance (miles) | I25: =IFERROR(MIN(F25,M25*'CA-GREET4.0'!C$24*'CA-GREET4.0'!D$35/'CA-GREET4.0'!F$24)*'Pathway Summary'!H$9/'Pathway Summary'!H$8,) -> 0 | K25: =M25*'CA-GREET4.0'!E$6 -> 0 | L25: 125000
I26: =IFERROR(MIN(F26,M26*'CA-GREET4.0'!C$24*'CA-GREET4.0'!D$35/'CA-GREET4.0'!F$24)*'Pathway Summary'!H$9/'Pathway Summary'!H$8,) -> 0 | K26: =M26*'CA-GREET4.0'!E$6 -> 0 | L26: 125000
I27: =IFERROR(MIN(F27,M27*'CA-GREET4.0'!C$24*'CA-GREET4.0'!D$35/'CA-GREET4.0'!F$24)*'Pathway Summary'!H$9/'Pathway Summary'!H$8,) -> 0 | K27: =M27*'CA-GREET4.0'!E$6 -> 0 | L27: 125000
I28: =IFERROR(MIN(F28,M28*'CA-GREET4.0'!C$24*'CA-GREET4.0'!D$35/'CA-GREET4.0'!F$24)*'Pathway Summary'!H$9/'Pathway Summary'!H$8,) -> 0 | K28: =M28*'CA-GREET4.0'!E$6 -> 0 | L28: 125000
I29: =IFERROR(MIN(F29,M29*'CA-GREET4.0'!C$24*'CA-GREET4.0'!D$35/'CA-GREET4.0'!F$24)*'Pathway Summary'!H$9/'Pathway Summary'!H$8,) -> 0 | K29: =M29*'CA-GREET4.0'!E$6 -> 0 | L29: 125000
I30: =IFERROR(MIN(F30,M30*'CA-GREET4.0'!C$24*'CA-GREET4.0'!D$35/'CA-GREET4.0'!F$24)*'Pathway Summary'!H$9/'Pathway Summary'!H$8,) -> 0 | K30: =M30*'CA-GREET4.0'!E$6 -> 0 | L30: 125000
I31: =IFERROR(MIN(F31,M31*'CA-GREET4.0'!C$24*'CA-GREET4.0'!D$35/'CA-GREET4.0'!F$24)*'Pathway Summary'!H$9/'Pathway Summary'!H$8,) -> 0 | K31: =M31*'CA-GREET4.0'!E$6 -> 0 | L31: 125000

Sheet Pathway Summary
C2: Tier 1 Hydrogen Pathway Summary and Operating Conditions
C4: FOR APPLICANT ONLY - CONTAINS CONFIDENTIAL BUSINESS INFORMATION - DO NOT DISTRIBUTE
B7: Application Overview | G7: Finished Fuel Quantities (kg H2)
B8: Application # | C8: =IF('Site-Specific Inputs'!C3="","",'Site-Specific Inputs'!C3) ->  | D8: Pathway Type | E8: SMR | G8: H2 Produced | H8: =IF(SUM('Site-Specific Inputs'!M8:M31)=0,"",SUM('Site-Specific Inputs'!M8:M31)) ->  | I8: Reportable Quantities
B9: Company Name and ID | C9: =CONCATENATE('Site-Specific Inputs'!C4," ",'Site-Specific Inputs'!C5) ->  | D9: Inputs | E9: Site-Specific Values | G9: H2 to Fueling Stations | H9: =IF(SUM('Site-Specific Inputs'!N8:O31)=0,"",SUM('Site-Specific Inputs'!N8:O31)) ->  | I9: Without B&C Attributes | J9: With B&C RNG | K9: With B&C Low-CI Electricity
B10: Facility Address and ID | C10: =CONCATENATE('Site-Specific Inputs'!C6," ",'Site-Specific Inputs'!C7) ->  | D10: Data Period | E10: =IF(SUM('Site-Specific Inputs'!E8:E27)=0,"",CONCATENATE(TEXT(MIN('Site-Specific Inputs'!E8:E27),"mm/yyyy")," — ",TEXT(MAX('Site-Specific Inputs'!E8:E27),"mm/yyyy"))) ->  | G10: H2 Finished Fuel | H10: =IF(H8="","",IF(OR('Site-Specific Inputs'!C25="",'Site-Specific Inputs'!C25=0),SUM('Site-Specific Inputs'!N8:N31)/'CA-GREET4.0'!E18+SUM('Site-Specific Inputs'!O8:O31)/'CA-GREET4.0'!E19,SUM('Site-Specific Inputs'!N8:N31)/'CA-GREET4.0'!E20+SUM('Site-Specific Inputs'!O8:O31)/'CA-GREET4.0'!E21)) ->  | I10: =IFERROR(H10-SUM(J10:K10),"") ->  | J10: =IFERROR(IF(E8="Electrolysis",0,H10*MIN(SUM('Site-Specific Inputs'!J8:J31)/SUM('Site-Specific Inputs'!I8:I31),1)),"") ->  | K10: =IFERROR(IF(E8="SMR","",H10*MIN(SUM('Site-Specific Inputs'!L8:L31)/SUM('Site-Specific Inputs'!K8:K31),1)),"") -> 
B12: Carbon Intensity (CI) Calculations
B13: Fuel Pathway Inputs | F13: Emission Factors | H13: Emissions | I13: CI (gCO2e/MJ H2, LHV)
B14: Category | C14: Name | D14: Value | E14: Unit | F14: Value | G14: Unit | H14: gCO2e | I14: =I9 -> Without B&C Attributes | J14: =J9 -> With B&C RNG | K14: =K9 -> With B&C Low-CI Electricity
B15: ='Site-Specific Inputs'!F3 -> Energy Inputs | C15: Natural Gas, Eligible for B&C Matching | D15: =IFERROR(MIN(SUM('Site-Specific Inputs'!F8:F27)*'CA-GREET4.0'!F24,H9*'CA-GREET4.0'!C24*'CA-GREET4.0'!D35),) -> 0 | E15: MMBtu, LHV | F15: ='CA-GREET4.0'!E8 -> 72680.21892 | G15: gCO2e/MMBtu, LHV | H15: =IFERROR(D15*F15,) -> 0 | I15: =IFERROR($H15/$H$8*$H$9/$H$10/'CA-GREET4.0'!$C$24,"") -> 
C16: Natural Gas, Not Eligible for B&C Matching | D16: =IFERROR(MAX(SUM('Site-Specific Inputs'!F8:F27)*'CA-GREET4.0'!F24-D15,0),) -> 0 | E16: MMBtu, LHV | F16: ='CA-GREET4.0'!E8 -> 72680.21892 | G16: gCO2e/MMBtu, LHV | H16: 0 | I16: =IFERROR($H16/$H$8*$H$9/$H$10/'CA-GREET4.0'!$C$24,"") ->  | J16: =IF(J$10>0,$I16,"") ->  | K16: =IF(K$10>0,$I16,"") -> 
C17: ='Site-Specific Inputs'!G6 -> Grid Electricity | D17: =IFERROR(SUM('Site-Specific Inputs'!G8:G27),) -> 0 | E17: ='Site-Specific Inputs'!G7 -> kWh | F17: =IF('Site-Specific Inputs'!C19="","",'Site-Specific Inputs'!C19) ->  | G17: gCO2e/kWh | H17: =IFERROR(D17*F17,) -> 0 | I17: =IFERROR($H17/$H$8*$H$9/$H$10/'CA-GREET4.0'!$C$24,"") ->  | J17: =IF(J$10>0,$I17,"") -> 
C18: ='Site-Specific Inputs'!H6 -> Direct Supply Low-CI Electricity | D18: =IFERROR(SUM('Site-Specific Inputs'!H8:H27),) -> 0 | E18: ='Site-Specific Inputs'!H7 -> kWh | F18: =IF(OR('Site-Specific Inputs'!C20="",'Site-Specific Inputs'!C20="N/A"),"", 'Site-Specific Inputs'!C20) ->  | G18: gCO2e/kWh | H18: 0 | I18: =IFERROR($H18/$H$8*$H$9/$H$10/'CA-GREET4.0'!$C$24,"") ->  | K18: =IF(K$10>0,$I18,"") -> 
B19: ='Site-Specific Inputs'!I3 -> Book-and-Claim Accounting | C19: ='Site-Specific Inputs'!I4 -> RNG | D19: =MIN(SUM('Site-Specific Inputs'!I8:I27),SUM('Site-Specific Inputs'!J8:J27)) -> 0 | E19: MMBtu, HHV | F19: =IF(OR('Site-Specific Inputs'!C22="",'Site-Specific Inputs'!C22="N/A"),"",('Site-Specific Inputs'!C22-'CA-GREET4.0'!E9)*'CA-GREET4.0'!G31) ->  | G19: gCO2e/MMBtu, HHV | H19: =IFERROR(D19*F19,) -> 0 | J19: =IFERROR(D15*F19/$H$10/'CA-GREET4.0'!$C$24,"") -> 
C20: ='Site-Specific Inputs'!K4 -> Low-CI Electricity | D20: =MIN(SUM('Site-Specific Inputs'!K8:K27),SUM('Site-Specific Inputs'!L8:L27)) -> 0 | E20: kWh | F20: =IF(OR('Site-Specific Inputs'!C24="",'Site-Specific Inputs'!C24="N/A"),"",'Site-Specific Inputs'!C24) ->  | G20: gCO2e/kWh | H20: =IFERROR(D20*F20,) -> 0 | K20: =IFERROR(D17*F20/$H$10/'CA-GREET4.0'!$C$24,"") -> 
B21: Transportation and Distribution | C21: ='Site-Specific Inputs'!N6 -> Gaseous Hydrogen | D21: =IFERROR(SUM('Site-Specific Inputs'!N8:N31)*'Site-Specific Inputs'!C25,) -> 0 | E21: kg-miles | F21: ='CA-GREET4.0'!E10 -> 8.335905916 | G21: gCO2e/kg-mile | H21: =IFERROR(D21*F21,) -> 0 | I21: =IFERROR($H21/$H$10/'CA-GREET4.0'!$C$24,"") ->  | K21: =IF(K$10>0,$I21,"") -> 
C22: Liquid Tanker Truck | D22: =IFERROR(SUM('Site-Specific Inputs'!O8:O31)*'Site-Specific Inputs'!C25,) -> 0 | E22: kg-miles | F22: ='CA-GREET4.0'!E11 -> 0.8330011029 | G22: gCO2e/kg-mile | H22: 0 | I22: =IFERROR($H22/$H$10/'CA-GREET4.0'!$C$24,"") -> 
C23: ='CA-GREET4.0'!D12 -> Compression and Precooling | D23: =H10*'CA-GREET4.0'!C24 ->  | E23: MJ H2, LHV | F23: ='CA-GREET4.0'!E12 -> 12.41375906 | G23: gCO2e/MJ H2 | H23: 0 | I23: =IFERROR($H23/$H$10/'CA-GREET4.0'!$C$24,"") -> 
B24: Fuel Pathway CI | I24: =IF(H8="","",SUM(I15:I23)) ->  | J24: =IF(J10="","",SUM(J15:J23)) ->  | K24: =IF(K10="","",SUM(K15:K23)) -> 
B25: Margin of Safety (entered by applicant)
B26: Fuel Pathway CI with Margin of Safety | I26: =IFERROR(I24+I25,"") ->  | J26: =IFERROR(J24+J25,"") -> 
B28: Operating Conditions
C39: `

Sheet CA-GREET4.0
B2: Tier 1 Hydrogen Inputs and Emission Factors
B3: Category | C3: Sub-Category | D3: Name | E3: Value | F3: Unit | G3: Source
B4: Default Energy Usage Values | C4: Natural Gas | D4: SMR | E4: 0.1622617192 | F4: MMBtu NG, HHV/kg H2 | G4: GREET 2022
C5: Electricity | D5: SMR | E5: 0.1315261012 | F5: kWh/kg H2
D6: Electrolysis | E6: 50
D7: Liquefaction | E7: 11.31731897
B8: Process Fuels | C8: Natural Gas | D8: Combusted in Boiler or CHP | E8: 72680.21892 | F8: MMBtu, LHV
B9: Book-and-Claim Inputs | C9: RNG CI Adjustments | D9: CNG Compression at Fueling Station | E9: 3.1468364 | F9: gCO2e/MJ RNG, LHV
B10: Finished Fuel Transport | C10: Gaseous H2 (G.H2) | D10: Gas Tube Trailer Truck | E10: 8.335905916 | F10: gCO2e/kg-mile H2
C11: Liquified H2 (L.H2) | D11: Liquid Tanker Truck | E11: 0.8330011029
B12: Vehicle Fueling | D12: Compression and Precooling | E12: 12.41375906 | F12: gCO2e/MJ H2, LHV
B13: Loss Factors | C13: By Transport Stage | D13: G.H2 Liquefaction | E13: 1.003045685
D14: L.H2 Station Storage | E14: 1.004862032
D15: Direct Use On Site | E15: =1/(1-0.002) -> 1.002004008 | G15: SIPA
D16: G.H2 / L.H2 Truck Transport | E16: 1.052631579
D17: End Use Vehicle Losses | E17: =1/(1-0.023) -> 1.023541453
C18: Compound Loss Factors | D18: Onsite Fueling - G.H2 | E18: =E15*E17 -> 1.025592639
D19: Onsite Fueling - L.H2 | E19: =E13*E15*E17 -> 1.028716271
D20: Truck Delivery - G.H2 | E20: =E16*E17 -> 1.077412056
D21: Truck Delivery - L.H2 | E21: =E13*E16*E14*E17 -> 1.085947881
B23: Fuel Specifications
B24: Hydrogen | C24: 119.9867437 | D24: MJ/kg, LHV | E24: Natural Gas | F24: 0.9026629936 | G24: LHV/HHV
B25: Source: 'Fuel_Specs' worksheet, GREET 2022
B27: Unit Conversion
B28: Energy | C28: 1 J | D28: 1 MJ | E28: 1 kWh | F28: 1 BTU | G28: 1 mmBTU
B29: Joule (J) | C29: 1 | D29: 1000000 | E29: 3600000 | F29: 1055.05585 | G29: 1055055850
B30: Kilojoule (kJ) | C30: 0.001 | D30: 1000 | E30: 3600 | F30: 1.05505585 | G30: 1055055.85
B31: Megajoule (MJ) | C31: 1e-06 | D31: 1 | E31: 3.6 | F31: 0.00105505585 | G31: 1055.05585
B32: Watt-hour (Wh) | C32: 0.0002777777778 | D32: 277.7777778 | E32: 1000 | F32: 0.2930710694 | G32: 293071.0694
B33: Kilowatt-hour (kWh) | C33: 2.777777778e-07 | D33: 0.2777777778 | E33: 1 | F33: 0.0002930710694 | G33: 293.0710694
B34: British Thermal Unit (BTU) | C34: 0.0009478171227 | D34: 947.8171227 | E34: 3412.141642 | F34: 1 | G34: 1000000
B35: Million British Thermal Unit (mmBTU) | C35: 9.478171227e-10 | D35: 0.0009478171227 | E35: 0.003412141642 | F35: 1e-06 | G35: 1
B36: Mass | C36: 1 g | D36: 1 kg | E36: 1 metric ton | F36: 1 lb | G36: 1 short ton
B37: Gram (g) | C37: 1 | D37: 1000 | E37: 1000000 | F37: 453.59237 | G37: 907184.74
B38: Kilogram (kg) | C38: 0.001 | D38: 1 | E38: 1000 | F38: 0.45359237 | G38: 907.18474
B39: Metric Ton (MT) | C39: 1e-06 | D39: 0.001 | E39: 1 | F39: 0.00045359237 | G39: 0.90718474
B40: Pound (lb) | C40: 0.002204622622 | D40: 2.204622622 | E40: 2204.622622 | F40: 1 | G40: 2000
B41: Short Ton | C41: 1.102311311e-06 | D41: 0.001102311311 | E41: 1.102311311 | F41: 0.0005 | G41: 1
B42: Volume | C42: 1 m3 | D42: 1 ml | E42: 1 L | F42: 1 gal | G42: 1 ft3
B43: Cubic Meter (m3) | C43: 1 | D43: 1e-06 | E43: 0.001 | F43: 0.003785411 | G43: 0.028316847
B44: Milliliter (ml) | C44: 1000000 | D44: 1 | E44: 1000 | F44: 3785.411 | G44: 28316.847
B45: Liter (L) | C45: 1000 | D45: 0.001 | E45: 1 | F45: 3.785411 | G45: 28.316847
B46: Gallon (gal) | C46: 264.1721071 | D46: 0.0002641721071 | E46: 0.2641721071 | F46: 1 | G46: 7.480521138
B47: Cubic Foot (ft3) | C47: 35.31466621 | D47: 3.531466621e-05 | E47: 0.03531466621 | F47: 0.1336805259 | G47: 1
B48: Source: 'Fuel_Specs' worksheet, GREET 2022
B50: Grid Electricity EF (gCO2e/kWh)
B51: User Defined | C51: =IF('Site-Specific Inputs'!C18="User Defined",'Site-Specific Inputs'!C19,) -> 0
B52: U.S. Average | C52: 459.6270597
B53: AKGD | C53: 306.667228
B54: AKMS | C54: 572.960706
B55: AZNM | C55: 431.5357561
B56: CAMX | C56: 314.3102746
B57: ERCT | C57: 448.9399471
B58: FRCC | C58: 473.2207393
B59: HIMS | C59: 880.2104216
B60: HIOA | C60: 649.8959479
B61: MROE | C61: 779.9306205
B62: MROW | C62: 517.3921634
B63: NEWE | C63: 166.9882956
B64: NWPP | C64: 349.0857337
B65: NYCW | C65: 365.3209781
B66: NYLI | C66: 459.8884941
B67: NYUP | C67: 383.1880796
B68: PRMS | C68: 949.1371008
B69: RFCE | C69: 520.1835781
B70: RFCM | C70: 624.7253141
B71: RFCW | C71: 558.1548155
B72: RMPA | C72: 570.5437537
B73: SPNO | C73: 522.8061626
B74: SPSO | C74: 511.5353192
B75: SRMV | C75: 450.1372783
B76: SRMW | C76: 812.0321839
B77: SRSO | C77: 317.8361821
B78: SRTV | C78: 500.4048965
B79: SRVC | C79: 511.5353192
B80: Brazil | C80: 182.4081924
B81: Canada | C81: 173.2299904
B82: Source: eGRID 2021 and GREET 2022
